[Event "Titled Tuesday Blitz July 4 Late 2023"]
[White "texie1"]
[Black "Zavgorodniy, Sergiy"]
[BlackFideId "14110148"]
[WhiteElo "2431"]
[BlackElo "2593"]
[Result "1-0"]
[Round "9"]
[TimeControl "180+2"]
[Date "2023.07.04"]
[WhiteClock "0:00:18"]
[BlackClock "0:00:32"]
[Board "64"]

1. Nf3 {[%clk 0:03:00]}  d5 {[%clk 0:02:58]} 2. c4 {[%clk 0:03:00]}  e6 {[%clk 0:02:57]} 3. e3 {[%clk 0:03:00]}  Nf6 {[%clk 0:02:57]} 4. b3 {[%clk 0:03:00]}  Be7 {[%clk 0:02:55]} 5. Bb2 {[%clk 0:03:00]}  O-O {[%clk 0:02:55]} 6. Be2 {[%clk 0:02:55]}  b6 {[%clk 0:02:56]} 7. g4 {[%clk 0:02:52]}  Bb7 {[%clk 0:02:54]} 8. g5 {[%clk 0:02:51]}  Ne4 {[%clk 0:02:54]} 9. h4 {[%clk 0:02:52]}  Nd7 {[%clk 0:02:51]} 10. d3 {[%clk 0:02:51]}  Nd6 {[%clk 0:02:51]} 11. Nbd2 {[%clk 0:02:47]}  c5 {[%clk 0:02:49]} 12. Rg1 {[%clk 0:02:44]}  dxc4 {[%clk 0:02:44]} 13. dxc4 {[%clk 0:02:40]}  Ne4 {[%clk 0:02:42]} 14. Qc2 {[%clk 0:02:38]}  Nxd2 {[%clk 0:02:40]} 15. Nxd2 {[%clk 0:02:39]}  Qc7 {[%clk 0:02:36]} 16. f4 {[%clk 0:02:34]}  Rad8 {[%clk 0:02:35]} 17. Bd3 {[%clk 0:02:31]}  f5 {[%clk 0:02:14]} 18. gxf6 {[%clk 0:02:30]}  Nxf6 {[%clk 0:02:13]} 19. Bxh7+ {[%clk 0:02:21]}  Kh8 {[%clk 0:02:11]} 20. Bg6 {[%clk 0:02:16]}  Bd6 {[%clk 0:02:00]} 21. O-O-O {[%clk 0:02:07]}  e5 {[%clk 0:01:59]} 22. fxe5 {[%clk 0:01:43]}  Bxe5 {[%clk 0:01:58]} 23. Rg5 {[%clk 0:01:42]}  Bxb2+ {[%clk 0:01:53]} 24. Kxb2 {[%clk 0:01:43]}  Qh2 {[%clk 0:01:42]} 25. Bd3 {[%clk 0:01:15]}  Rd7 {[%clk 0:01:33]} 26. Bf5 {[%clk 0:01:09]}  Re7 {[%clk 0:01:24]} 27. Nf1 {[%clk 0:00:50]}  Qxh4 {[%clk 0:00:58]} 28. Rg3 {[%clk 0:00:47]}  Kg8 {[%clk 0:00:55]} 29. Rh3 {[%clk 0:00:40]}  Qg5 {[%clk 0:00:55]} 30. Bh7+ {[%clk 0:00:39]}  Kf7 {[%clk 0:00:54]} 31. Bf5 {[%clk 0:00:29]}  Be4 {[%clk 0:00:50]} 32. Bxe4 {[%clk 0:00:26]}  Rxe4 {[%clk 0:00:51]} 33. Rf3 {[%clk 0:00:20]}  Rfe8 {[%clk 0:00:48]} 34. Qd3 {[%clk 0:00:20]}  Qg2+ {[%clk 0:00:47]} 35. Nd2 {[%clk 0:00:18]}  R4e7 {[%clk 0:00:41]} 36. Ka3 {[%clk 0:00:18]}  a6 {[%clk 0:00:37]} 37. Qd5+ {[%clk 0:00:18]}  Kf8 {[%clk 0:00:37]} 38. Rxf6+ {[%clk 0:00:18]}  gxf6 {[%clk 0:00:32]} 39. Qxg2 {[%clk 0:00:18]} 1-0


[Site "https://www.chess.com"]

[Event "Titled Tuesday Blitz July 4 Late 2023"]
[White "Jovic, Stanoje"]
[Black "Castella Garcia, Fausto"]
[WhiteFideId "905020"]
[BlackFideId "3501922"]
[WhiteElo "2561"]
[BlackElo "2419"]
[Result "0-1"]
[Round "9"]
[TimeControl "180+2"]
[Date "2023.07.04"]
[WhiteClock "0:00:00"]
[BlackClock "0:00:11"]
[Board "65"]

1. c4 {[%clk 0:03:00]}  c5 {[%clk 0:02:59]} 2. g3 {[%clk 0:03:01]}  g6 {[%clk 0:02:59]} 3. Bg2 {[%clk 0:03:01]}  Bg7 {[%clk 0:02:59]} 4. Nc3 {[%clk 0:03:01]}  Nf6 {[%clk 0:03:00]} 5. Nf3 {[%clk 0:03:01]}  O-O {[%clk 0:03:00]} 6. O-O {[%clk 0:03:01]}  Nc6 {[%clk 0:03:01]} 7. d4 {[%clk 0:03:01]}  cxd4 {[%clk 0:03:02]} 8. Nxd4 {[%clk 0:03:01]}  Qa5 {[%clk 0:03:02]} 9. Nb3 {[%clk 0:02:59]}  Qh5 {[%clk 0:03:00]} 10. e3 {[%clk 0:03:00]}  Qxd1 {[%clk 0:02:58]} 11. Rxd1 {[%clk 0:03:00]}  d6 {[%clk 0:02:59]} 12. c5 {[%clk 0:02:59]}  dxc5 {[%clk 0:02:58]} 13. Nxc5 {[%clk 0:02:59]}  Bg4 {[%clk 0:02:58]} 14. f3 {[%clk 0:02:56]}  Bc8 {[%clk 0:02:57]} 15. e4 {[%clk 0:02:53]}  b6 {[%clk 0:02:57]} 16. Nb3 {[%clk 0:02:51]}  Ba6 {[%clk 0:02:48]} 17. Bg5 {[%clk 0:02:45]}  h6 {[%clk 0:02:38]} 18. Be3 {[%clk 0:02:42]}  Ne5 {[%clk 0:02:33]} 19. Bd4 {[%clk 0:02:17]}  Nc4 {[%clk 0:02:15]} 20. Bf1 {[%clk 0:02:13]}  Rac8 {[%clk 0:02:05]} 21. Rac1 {[%clk 0:02:07]}  Rfd8 {[%clk 0:01:54]} 22. Bf2 {[%clk 0:01:39]}  e6 {[%clk 0:01:11]} 23. Rxd8+ {[%clk 0:01:33]}  Rxd8 {[%clk 0:01:10]} 24. Nd1 {[%clk 0:01:27]}  b5 {[%clk 0:01:06]} 25. Nc5 {[%clk 0:01:23]}  Bc8 {[%clk 0:01:02]} 26. b3 {[%clk 0:01:23]}  Ne5 {[%clk 0:00:54]} 27. f4 {[%clk 0:01:09]}  Neg4 {[%clk 0:00:50]} 28. Bxb5 {[%clk 0:01:00]}  Nxf2 {[%clk 0:00:48]} 29. Nxf2 {[%clk 0:00:59]}  e5 {[%clk 0:00:45]} 30. Rd1 {[%clk 0:00:49]}  Rxd1+ {[%clk 0:00:40]} 31. Nxd1 {[%clk 0:00:49]}  exf4 {[%clk 0:00:41]} 32. gxf4 {[%clk 0:00:42]}  Nh5 {[%clk 0:00:41]} 33. Nd3 {[%clk 0:00:40]}  Bh3 {[%clk 0:00:37]} 34. Ne3 {[%clk 0:00:37]}  Bd4 {[%clk 0:00:37]} 35. Kf2 {[%clk 0:00:36]}  f5 {[%clk 0:00:33]} 36. e5 {[%clk 0:00:33]}  g5 {[%clk 0:00:33]} 37. Bc4+ {[%clk 0:00:32]}  Kg7 {[%clk 0:00:32]} 38. Ke2 {[%clk 0:00:29]}  Nxf4+ {[%clk 0:00:31]} 39. Nxf4 {[%clk 0:00:29]}  gxf4 {[%clk 0:00:32]} 40. Nd5 {[%clk 0:00:26]}  Bg4+ {[%clk 0:00:33]} 41. Kd3 {[%clk 0:00:26]}  Bxe5 {[%clk 0:00:32]} 42. Ne7 {[%clk 0:00:25]}  Kf6 {[%clk 0:00:31]} 43. Nc6 {[%clk 0:00:25]}  Bc7 {[%clk 0:00:30]} 44. Nxa7 {[%clk 0:00:23]}  f3 {[%clk 0:00:30]} 45. Nb5 {[%clk 0:00:21]}  Bxh2 {[%clk 0:00:29]} 46. Nc3 {[%clk 0:00:20]}  f2 {[%clk 0:00:29]} 47. Nd5+ {[%clk 0:00:19]}  Ke5 {[%clk 0:00:27]} 48. Ne3 {[%clk 0:00:18]}  Bh3 {[%clk 0:00:25]} 49. Ke2 {[%clk 0:00:17]}  f4 {[%clk 0:00:22]} 50. Nf1 {[%clk 0:00:16]}  Bg3 {[%clk 0:00:22]} 51. a4 {[%clk 0:00:15]}  Bg4+ {[%clk 0:00:19]} 52. Kd2 {[%clk 0:00:14]}  h5 {[%clk 0:00:18]} 53. b4 {[%clk 0:00:13]}  h4 {[%clk 0:00:18]} 54. b5 {[%clk 0:00:12]}  h3 {[%clk 0:00:19]} 55. b6 {[%clk 0:00:11]}  Bf3 {[%clk 0:00:19]} 56. a5 {[%clk 0:00:10]}  h2 {[%clk 0:00:19]} 57. Nxh2 {[%clk 0:00:10]}  Bxh2 {[%clk 0:00:20]} 58. a6 {[%clk 0:00:10]}  Be4 {[%clk 0:00:16]} 59. Bf1 {[%clk 0:00:06]}  Kd4 {[%clk 0:00:15]} 60. b7 {[%clk 0:00:05]}  f3 {[%clk 0:00:16]} 61. Kc1 {[%clk 0:00:01]}  Bf4+ {[%clk 0:00:14]} 62. Kb2 {[%clk 0:00:02]}  Ke3 {[%clk 0:00:14]} 63. Kc3 {[%clk 0:00:01]}  Bc6 {[%clk 0:00:12]} 64. Kc4 {[%clk 0:00:01]}  Kd2 {[%clk 0:00:12]} 65. Kc5 {[%clk 0:00:00]}  Be4 {[%clk 0:00:11]} 0-1


[Site "https://www.chess.com"]

[Event "Titled Tuesday Blitz July 4 Late 2023"]
[White "Carrasco Miranda, Andres"]
[Black "Prem, Pranav"]
[WhiteFideId "3405990"]
[BlackFideId "30901057"]
[WhiteElo "2415"]
[BlackElo "2533"]
[Result "1/2-1/2"]
[Round "9"]
[TimeControl "180+2"]
[Date "2023.07.04"]
[WhiteClock "0:00:03"]
[BlackClock "0:00:06"]
[Board "66"]

1. d4 {[%clk 0:02:27]}  d5 {[%clk 0:02:58]} 2. c4 {[%clk 0:02:26]}  e6 {[%clk 0:02:58]} 3. Nf3 {[%clk 0:02:26]}  Nf6 {[%clk 0:02:57]} 4. g3 {[%clk 0:02:26]}  Bb4+ {[%clk 0:02:57]} 5. Nbd2 {[%clk 0:02:25]}  dxc4 {[%clk 0:02:56]} 6. Bg2 {[%clk 0:02:21]}  O-O {[%clk 0:02:46]} 7. O-O {[%clk 0:02:21]}  b5 {[%clk 0:02:47]} 8. Ne1 {[%clk 0:02:20]}  Nd5 {[%clk 0:02:40]} 9. a4 {[%clk 0:02:18]}  c6 {[%clk 0:02:37]} 10. Nc2 {[%clk 0:02:18]}  Be7 {[%clk 0:02:34]} 11. e4 {[%clk 0:02:16]}  Nc7 {[%clk 0:02:29]} 12. e5 {[%clk 0:01:55]}  Nd5 {[%clk 0:02:27]} 13. Ne4 {[%clk 0:01:56]}  a5 {[%clk 0:01:55]} 14. h4 {[%clk 0:01:52]}  Nd7 {[%clk 0:01:51]} 15. Bg5 {[%clk 0:01:51]}  f6 {[%clk 0:01:42]} 16. exf6 {[%clk 0:01:43]}  N7xf6 {[%clk 0:01:41]} 17. Re1 {[%clk 0:01:26]}  b4 {[%clk 0:01:31]} 18. Nc5 {[%clk 0:01:17]}  Bxc5 {[%clk 0:01:11]} 19. dxc5 {[%clk 0:01:18]}  h6 {[%clk 0:01:11]} 20. Bd2 {[%clk 0:01:12]}  Qe7 {[%clk 0:01:06]} 21. Nd4 {[%clk 0:01:04]}  Qxc5 {[%clk 0:00:56]} 22. Nxe6 {[%clk 0:01:04]}  Bxe6 {[%clk 0:00:54]} 23. Rxe6 {[%clk 0:01:05]}  Rae8 {[%clk 0:00:55]} 24. Rxe8 {[%clk 0:01:02]}  Rxe8 {[%clk 0:00:55]} 25. Rc1 {[%clk 0:00:55]}  Qd4 {[%clk 0:00:27]} 26. Be3 {[%clk 0:00:20]}  Qxd1+ {[%clk 0:00:25]} 27. Rxd1 {[%clk 0:00:21]}  Nxe3 {[%clk 0:00:26]} 28. fxe3 {[%clk 0:00:22]}  Rxe3 {[%clk 0:00:25]} 29. Bxc6 {[%clk 0:00:22]}  Rxg3+ {[%clk 0:00:24]} 30. Kf2 {[%clk 0:00:21]}  Rh3 {[%clk 0:00:22]} 31. Rd4 {[%clk 0:00:13]}  Rb3 {[%clk 0:00:17]} 32. Rxc4 {[%clk 0:00:11]}  Rxb2+ {[%clk 0:00:17]} 33. Kf3 {[%clk 0:00:10]}  Rb3+ {[%clk 0:00:16]} 34. Kf4 {[%clk 0:00:09]}  Rc3 {[%clk 0:00:16]} 35. Rxc3 {[%clk 0:00:06]}  bxc3 {[%clk 0:00:16]} 36. Ke3 {[%clk 0:00:07]}  g5 {[%clk 0:00:16]} 37. hxg5 {[%clk 0:00:06]}  hxg5 {[%clk 0:00:17]} 38. Kd3 {[%clk 0:00:07]}  Kf7 {[%clk 0:00:15]} 39. Kxc3 {[%clk 0:00:07]}  Ke6 {[%clk 0:00:16]} 40. Kc4 {[%clk 0:00:08]}  g4 {[%clk 0:00:13]} 41. Kc5 {[%clk 0:00:07]}  g3 {[%clk 0:00:13]} 42. Bg2 {[%clk 0:00:06]}  Ng4 {[%clk 0:00:11]} 43. Bh3 {[%clk 0:00:06]}  Ke5 {[%clk 0:00:11]} 44. Kb5 {[%clk 0:00:03]}  Kd4 {[%clk 0:00:06]} 45. Kxa5 {[%clk 0:00:03]}  Kc5 {[%clk 0:00:07]} 46. Ka6 {[%clk 0:00:03]}  Ne3 {[%clk 0:00:07]} 47. a5 {[%clk 0:00:03]}  Nd5 {[%clk 0:00:02]} 48. Kb7 {[%clk 0:00:03]}  Nb4 {[%clk 0:00:02]} 49. Bg2 {[%clk 0:00:02]}  Kb5 {[%clk 0:00:02]} 50. a6 {[%clk 0:00:02]}  Nxa6 {[%clk 0:00:02]} 51. Bf1+ {[%clk 0:00:02]}  Kc5 {[%clk 0:00:03]} 52. Kxa6 {[%clk 0:00:02]}  Kd4 {[%clk 0:00:04]} 53. Kb5 {[%clk 0:00:02]}  Ke3 {[%clk 0:00:05]} 54. Bh3 {[%clk 0:00:02]}  Kf2 {[%clk 0:00:05]} 55. Kc4 {[%clk 0:00:03]}  g2 {[%clk 0:00:06]} 56. Bxg2 {[%clk 0:00:03]} 1/2-1/2


[Site "https://www.chess.com"]

[Event "Titled Tuesday Blitz July 4 Late 2023"]
[White "Gabdushev, Ruslan"]
[Black "Petesch, Gabriel"]
[WhiteFideId "4137833"]
[BlackFideId "2032465"]
[WhiteElo "2414"]
[BlackElo "2533"]
[Result "0-1"]
[Round "9"]
[TimeControl "180+2"]
[Date "2023.07.04"]
[WhiteClock "0:00:04"]
[BlackClock "0:00:42"]
[Board "67"]

1. c4 {[%clk 0:03:00]}  c5 {[%clk 0:02:57]} 2. g3 {[%clk 0:02:58]}  Nc6 {[%clk 0:02:56]} 3. Bg2 {[%clk 0:02:58]}  Nf6 {[%clk 0:02:49]} 4. Nc3 {[%clk 0:02:57]}  e6 {[%clk 0:02:44]} 5. Nf3 {[%clk 0:02:48]}  Be7 {[%clk 0:02:41]} 6. O-O {[%clk 0:02:44]}  O-O {[%clk 0:02:39]} 7. d4 {[%clk 0:02:42]}  d5 {[%clk 0:02:16]} 8. cxd5 {[%clk 0:02:37]}  exd5 {[%clk 0:02:06]} 9. dxc5 {[%clk 0:02:29]}  d4 {[%clk 0:01:59]} 10. Na4 {[%clk 0:02:25]}  Be6 {[%clk 0:01:49]} 11. b3 {[%clk 0:02:20]}  Ne4 {[%clk 0:01:37]} 12. Bb2 {[%clk 0:02:17]}  Bf6 {[%clk 0:01:34]} 13. Qd3 {[%clk 0:01:52]}  Bf5 {[%clk 0:01:27]} 14. Qb5 {[%clk 0:01:48]}  Qc7 {[%clk 0:01:21]} 15. Rfd1 {[%clk 0:01:41]}  Rad8 {[%clk 0:01:14]} 16. Rac1 {[%clk 0:01:34]}  Rfe8 {[%clk 0:01:05]} 17. Kf1 {[%clk 0:01:06]}  h6 {[%clk 0:01:03]} 18. Ne1 {[%clk 0:00:37]}  Bg5 {[%clk 0:00:54]} 19. f4 {[%clk 0:00:31]}  Bxf4 {[%clk 0:00:45]} 20. gxf4 {[%clk 0:00:30]}  Qxf4+ {[%clk 0:00:44]} 21. Nf3 {[%clk 0:00:04]}  Qe3 {[%clk 0:00:42]} 0-1


[Site "https://www.chess.com"]

[Event "Titled Tuesday Blitz July 4 Late 2023"]
[White "Urbina Perez, Juan Antonio"]
[Black "Kanyamarala, Tarun"]
[WhiteFideId "2217368"]
[BlackFideId "45004714"]
[WhiteElo "2411"]
[BlackElo "2530"]
[Result "1-0"]
[Round "9"]
[TimeControl "180+2"]
[Date "2023.07.04"]
[WhiteClock "0:01:20"]
[BlackClock "0:00:39"]
[Board "68"]

1. e4 {[%clk 0:02:51]}  c5 {[%clk 0:02:59]} 2. Nf3 {[%clk 0:02:48]}  e6 {[%clk 0:03:00]} 3. c3 {[%clk 0:02:47]}  d5 {[%clk 0:02:44]} 4. exd5 {[%clk 0:02:48]}  Qxd5 {[%clk 0:02:42]} 5. d4 {[%clk 0:02:48]}  Nf6 {[%clk 0:02:42]} 6. Be2 {[%clk 0:02:47]}  cxd4 {[%clk 0:02:37]} 7. Qxd4 {[%clk 0:02:47]}  Nc6 {[%clk 0:02:35]} 8. Qxd5 {[%clk 0:02:44]}  Nxd5 {[%clk 0:02:36]} 9. O-O {[%clk 0:02:43]}  Bc5 {[%clk 0:02:34]} 10. a3 {[%clk 0:02:41]}  O-O {[%clk 0:02:34]} 11. c4 {[%clk 0:02:40]}  Nf6 {[%clk 0:02:27]} 12. b4 {[%clk 0:02:40]}  Be7 {[%clk 0:02:27]} 13. h3 {[%clk 0:02:37]}  a5 {[%clk 0:02:27]} 14. b5 {[%clk 0:02:33]}  Nb8 {[%clk 0:02:28]} 15. Be3 {[%clk 0:02:29]}  Nbd7 {[%clk 0:02:27]} 16. Nc3 {[%clk 0:02:25]}  Bc5 {[%clk 0:02:27]} 17. Bf4 {[%clk 0:02:12]}  Re8 {[%clk 0:02:10]} 18. Na4 {[%clk 0:02:11]}  e5 {[%clk 0:02:07]} 19. Nxe5 {[%clk 0:01:57]}  Nxe5 {[%clk 0:01:59]} 20. Nxc5 {[%clk 0:01:56]}  Ned7 {[%clk 0:01:18]} 21. Nxd7 {[%clk 0:01:52]}  Bxd7 {[%clk 0:01:19]} 22. Bf3 {[%clk 0:01:50]}  Rac8 {[%clk 0:01:18]} 23. Rac1 {[%clk 0:01:43]}  Be6 {[%clk 0:01:12]} 24. Bxb7 {[%clk 0:01:30]}  Rxc4 {[%clk 0:01:10]} 25. Rxc4 {[%clk 0:01:19]}  Bxc4 {[%clk 0:00:39]} 26. Bc6 {[%clk 0:01:20]} 1-0


[Site "https://www.chess.com"]

[Event "Titled Tuesday Blitz July 4 Late 2023"]
[White "Bochnicka, Vladimir"]
[Black "Moral Garcia, Serafin"]
[WhiteFideId "14943450"]
[BlackFideId "2201925"]
[WhiteElo "2396"]
[BlackElo "2524"]
[Result "0-1"]
[Round "9"]
[TimeControl "180+2"]
[Date "2023.07.04"]
[WhiteClock "0:00:10"]
[BlackClock "0:00:42"]
[Board "70"]

1. e4 {[%clk 0:02:57]}  e5 {[%clk 0:03:00]} 2. Nf3 {[%clk 0:02:54]}  Nc6 {[%clk 0:03:00]} 3. Bc4 {[%clk 0:02:55]}  Bc5 {[%clk 0:02:59]} 4. c3 {[%clk 0:02:55]}  Nf6 {[%clk 0:02:58]} 5. d3 {[%clk 0:02:55]}  a6 {[%clk 0:02:58]} 6. Nbd2 {[%clk 0:02:55]}  Ba7 {[%clk 0:02:57]} 7. Nf1 {[%clk 0:02:53]}  d5 {[%clk 0:02:57]} 8. exd5 {[%clk 0:02:52]}  Nxd5 {[%clk 0:02:57]} 9. Ng3 {[%clk 0:02:52]}  O-O {[%clk 0:02:57]} 10. O-O {[%clk 0:02:52]}  h6 {[%clk 0:02:55]} 11. Re1 {[%clk 0:02:48]}  Re8 {[%clk 0:02:55]} 12. d4 {[%clk 0:02:34]}  Nb6 {[%clk 0:02:51]} 13. Bb3 {[%clk 0:02:32]}  exd4 {[%clk 0:02:35]} 14. Rxe8+ {[%clk 0:02:30]}  Qxe8 {[%clk 0:02:36]} 15. cxd4 {[%clk 0:02:31]}  Bg4 {[%clk 0:02:35]} 16. Be3 {[%clk 0:02:29]}  Rd8 {[%clk 0:02:34]} 17. h3 {[%clk 0:02:16]}  Be6 {[%clk 0:02:31]} 18. Rc1 {[%clk 0:02:03]}  Bd5 {[%clk 0:02:29]} 19. Bxd5 {[%clk 0:01:58]}  Rxd5 {[%clk 0:02:28]} 20. Qb3 {[%clk 0:01:53]}  Rb5 {[%clk 0:02:22]} 21. Qc2 {[%clk 0:01:42]}  Nd5 {[%clk 0:02:21]} 22. Re1 {[%clk 0:01:28]}  Ncb4 {[%clk 0:02:17]} 23. Qd2 {[%clk 0:01:12]}  Qc6 {[%clk 0:02:08]} 24. Nf5 {[%clk 0:01:07]}  Qc2 {[%clk 0:01:57]} 25. Bxh6 {[%clk 0:01:04]}  Qxf5 {[%clk 0:01:50]} 26. Bg5 {[%clk 0:00:49]}  f6 {[%clk 0:01:47]} 27. Bh4 {[%clk 0:00:48]}  Nc6 {[%clk 0:01:43]} 28. Bg3 {[%clk 0:00:41]}  Rb4 {[%clk 0:01:39]} 29. Bxc7 {[%clk 0:00:23]}  Nxd4 {[%clk 0:01:03]} 30. Nxd4 {[%clk 0:00:21]}  Rxd4 {[%clk 0:01:02]} 31. Qc1 {[%clk 0:00:20]}  Rf4 {[%clk 0:00:50]} 32. Bxf4 {[%clk 0:00:18]}  Nxf4 {[%clk 0:00:50]} 33. Re8+ {[%clk 0:00:17]}  Kf7 {[%clk 0:00:49]} 34. Ra8 {[%clk 0:00:14]}  Ne2+ {[%clk 0:00:46]} 35. Kh2 {[%clk 0:00:13]}  Nxc1 {[%clk 0:00:47]} 36. Rxa7 {[%clk 0:00:10]}  Qd5 {[%clk 0:00:42]} 0-1


[Site "https://www.chess.com"]

[Event "Titled Tuesday Blitz July 4 Late 2023"]
[White "WindWhistler11"]
[Black "micke12a"]
[WhiteElo "2523"]
[BlackElo "2386"]
[Result "0-1"]
[Round "9"]
[TimeControl "180+2"]
[Date "2023.07.04"]
[WhiteClock "0:00:21"]
[BlackClock "0:00:32"]
[Board "71"]

1. Nf3 {[%clk 0:02:59]}  Nf6 {[%clk 0:02:56]} 2. g3 {[%clk 0:02:56]}  c5 {[%clk 0:02:51]} 3. Bg2 {[%clk 0:02:52]}  d5 {[%clk 0:02:51]} 4. c4 {[%clk 0:02:51]}  d4 {[%clk 0:02:51]} 5. e3 {[%clk 0:02:51]}  Nc6 {[%clk 0:02:51]} 6. exd4 {[%clk 0:02:51]}  cxd4 {[%clk 0:02:52]} 7. O-O {[%clk 0:02:51]}  g6 {[%clk 0:02:49]} 8. d3 {[%clk 0:02:50]}  Bg7 {[%clk 0:02:50]} 9. Na3 {[%clk 0:02:44]}  O-O {[%clk 0:02:46]} 10. Nc2 {[%clk 0:02:45]}  a5 {[%clk 0:02:44]} 11. b3 {[%clk 0:02:45]}  Nd7 {[%clk 0:02:42]} 12. Ba3 {[%clk 0:02:36]}  Re8 {[%clk 0:02:40]} 13. Re1 {[%clk 0:02:35]}  Qb6 {[%clk 0:02:31]} 14. Ng5 {[%clk 0:02:29]}  h6 {[%clk 0:02:28]} 15. Ne4 {[%clk 0:02:23]}  Nf6 {[%clk 0:02:08]} 16. c5 {[%clk 0:02:07]}  Qc7 {[%clk 0:02:08]} 17. Nd2 {[%clk 0:01:56]}  Bf5 {[%clk 0:02:04]} 18. Nc4 {[%clk 0:01:56]}  Nd7 {[%clk 0:01:56]} 19. b4 {[%clk 0:01:35]}  axb4 {[%clk 0:01:54]} 20. Nxb4 {[%clk 0:01:35]}  Rxa3 {[%clk 0:01:42]} 21. Nd5 {[%clk 0:01:30]}  Qd8 {[%clk 0:01:27]} 22. Nxa3 {[%clk 0:01:27]}  Nxc5 {[%clk 0:01:27]} 23. Be4 {[%clk 0:01:20]}  Bxe4 {[%clk 0:01:09]} 24. dxe4 {[%clk 0:01:21]}  d3 {[%clk 0:01:01]} 25. Rb1 {[%clk 0:01:17]}  Nd4 {[%clk 0:00:58]} 26. Nf4 {[%clk 0:01:00]}  Qa5 {[%clk 0:00:41]} 27. Nb5 {[%clk 0:00:52]}  Nxb5 {[%clk 0:00:36]} 28. Nxd3 {[%clk 0:00:51]}  Nc3 {[%clk 0:00:32]} 29. Qd2 {[%clk 0:00:47]}  Nxd3 {[%clk 0:00:32]} 30. Qxd3 {[%clk 0:00:21]}  Nxb1 {[%clk 0:00:32]} 0-1


[Site "https://www.chess.com"]

[Event "Titled Tuesday Blitz July 4 Late 2023"]
[White "Hajiyev, Kanan"]
[Black "Kanyamarala, Trisha"]
[WhiteFideId "13404148"]
[BlackFideId "45004722"]
[WhiteElo "2515"]
[BlackElo "2385"]
[Result "1-0"]
[Round "9"]
[TimeControl "180+2"]
[Date "2023.07.04"]
[WhiteClock "0:00:28"]
[BlackClock "0:00:08"]
[Board "72"]

1. d4 {[%clk 0:03:00]}  Nf6 {[%clk 0:02:58]} 2. c4 {[%clk 0:03:00]}  e6 {[%clk 0:02:58]} 3. Nf3 {[%clk 0:03:01]}  d5 {[%clk 0:02:57]} 4. cxd5 {[%clk 0:03:01]}  exd5 {[%clk 0:02:57]} 5. Nc3 {[%clk 0:03:02]}  Bb4 {[%clk 0:02:57]} 6. Qc2 {[%clk 0:02:58]}  O-O {[%clk 0:02:55]} 7. Bf4 {[%clk 0:02:58]}  c6 {[%clk 0:02:53]} 8. e3 {[%clk 0:02:59]}  Nbd7 {[%clk 0:02:50]} 9. Bd3 {[%clk 0:02:59]}  Re8 {[%clk 0:02:49]} 10. O-O {[%clk 0:02:59]}  Qe7 {[%clk 0:02:49]} 11. a3 {[%clk 0:02:59]}  Ba5 {[%clk 0:02:48]} 12. b4 {[%clk 0:02:59]}  Bb6 {[%clk 0:02:48]} 13. Na4 {[%clk 0:02:58]}  Ne4 {[%clk 0:02:47]} 14. Nc5 {[%clk 0:02:54]}  Ndf6 {[%clk 0:02:42]} 15. Ne5 {[%clk 0:02:54]}  Bc7 {[%clk 0:02:38]} 16. f3 {[%clk 0:02:53]}  Nxc5 {[%clk 0:02:37]} 17. bxc5 {[%clk 0:02:53]}  h6 {[%clk 0:02:35]} 18. Rfe1 {[%clk 0:02:52]}  Nh5 {[%clk 0:02:24]} 19. a4 {[%clk 0:02:50]}  Nxf4 {[%clk 0:02:23]} 20. exf4 {[%clk 0:02:51]}  Qf6 {[%clk 0:02:22]} 21. g3 {[%clk 0:02:51]}  Be6 {[%clk 0:02:17]} 22. Kg2 {[%clk 0:02:50]}  b6 {[%clk 0:02:09]} 23. Nxc6 {[%clk 0:02:23]}  bxc5 {[%clk 0:02:07]} 24. dxc5 {[%clk 0:02:19]}  Bh3+ {[%clk 0:02:01]} 25. Kxh3 {[%clk 0:02:20]}  Qxc6 {[%clk 0:02:00]} 26. Rxe8+ {[%clk 0:02:15]}  Rxe8 {[%clk 0:01:59]} 27. Bb5 {[%clk 0:02:14]}  Qe6+ {[%clk 0:01:53]} 28. f5 {[%clk 0:02:15]}  Qe5 {[%clk 0:01:49]} 29. Bxe8 {[%clk 0:02:08]}  Qxa1 {[%clk 0:01:49]} 30. Qd3 {[%clk 0:01:56]}  h5 {[%clk 0:01:31]} 31. Qxd5 {[%clk 0:01:37]}  Qf6 {[%clk 0:01:10]} 32. c6 {[%clk 0:01:22]}  h4 {[%clk 0:01:10]} 33. f4 {[%clk 0:01:08]}  hxg3 {[%clk 0:01:02]} 34. hxg3 {[%clk 0:01:09]}  Qe7 {[%clk 0:00:56]} 35. Qd7 {[%clk 0:00:59]}  Kf8 {[%clk 0:00:29]} 36. Qxe7+ {[%clk 0:00:51]}  Kxe7 {[%clk 0:00:30]} 37. Bd7 {[%clk 0:00:52]}  Kd6 {[%clk 0:00:22]} 38. Be8 {[%clk 0:00:43]}  Ke7 {[%clk 0:00:21]} 39. Bd7 {[%clk 0:00:43]}  a5 {[%clk 0:00:21]} 40. Kg4 {[%clk 0:00:43]}  Kd6 {[%clk 0:00:20]} 41. Kg5 {[%clk 0:00:37]}  Bd8+ {[%clk 0:00:19]} 42. Kh5 {[%clk 0:00:36]}  Bc7 {[%clk 0:00:16]} 43. g4 {[%clk 0:00:33]}  Kc5 {[%clk 0:00:16]} 44. Be8 {[%clk 0:00:33]}  Bxf4 {[%clk 0:00:09]} 45. Bxf7 {[%clk 0:00:29]}  Kxc6 {[%clk 0:00:08]} 46. Kg6 {[%clk 0:00:27]}  Be5 {[%clk 0:00:08]} 47. g5 {[%clk 0:00:24]}  Kc5 {[%clk 0:00:08]} 48. Be8 {[%clk 0:00:24]}  Kb4 {[%clk 0:00:06]} 49. f6 {[%clk 0:00:23]}  gxf6 {[%clk 0:00:07]} 50. gxf6 {[%clk 0:00:23]}  Bxf6 {[%clk 0:00:05]} 51. Kxf6 {[%clk 0:00:24]}  Kc5 {[%clk 0:00:06]} 52. Bb5 {[%clk 0:00:23]}  Kb6 {[%clk 0:00:05]} 53. Ke5 {[%clk 0:00:23]}  Ka7 {[%clk 0:00:05]} 54. Kd5 {[%clk 0:00:24]}  Kb6 {[%clk 0:00:05]} 55. Kc4 {[%clk 0:00:24]}  Kc7 {[%clk 0:00:05]} 56. Kc5 {[%clk 0:00:25]}  Kb7 {[%clk 0:00:05]} 57. Bc4 {[%clk 0:00:25]}  Ka7 {[%clk 0:00:05]} 58. Kb5 {[%clk 0:00:25]}  Kb7 {[%clk 0:00:05]} 59. Kxa5 {[%clk 0:00:26]}  Kc6 {[%clk 0:00:06]} 60. Bb5+ {[%clk 0:00:26]}  Kb7 {[%clk 0:00:06]} 61. Kb4 {[%clk 0:00:26]}  Ka7 {[%clk 0:00:07]} 62. a5 {[%clk 0:00:26]}  Ka8 {[%clk 0:00:07]} 63. Kc5 {[%clk 0:00:26]}  Kb8 {[%clk 0:00:07]} 64. Kb6 {[%clk 0:00:26]}  Ka8 {[%clk 0:00:08]} 65. a6 {[%clk 0:00:27]}  Kb8 {[%clk 0:00:08]} 66. a7+ {[%clk 0:00:27]}  Kc8 {[%clk 0:00:08]} 67. a8=Q# {[%clk 0:00:28]} 1-0


[Site "https://www.chess.com"]